fUST/lending_fUST_20250101
["ID","MTS","AMOUNT","RATE_DAILY","PERIOD"]
[347349964,1735720250028,-502.98,0.00019452,3]
[347349965,1735720250037,-500.0,0.00019452,3]
[347349966,1735720250047,-500.0,0.00019452,3]
[347349967,1735720250056,-1095.82,0.00019452,3]
[347349968,1735720250065,-1307.24,0.00019452,3]
[347349969,1735720250075,-1750.82,0.00019452,3]
[347349970,1735720250084,-500.0,0.00019452,3]
[347349971,1735720250093,-500.0,0.00019452,3]
[347349972,1735720250103,-769.33,0.00019452,2]
[347349973,1735720250111,-1932.28,0.00019452,3]
[347349974,1735720250121,-500.0,0.00019452,3]
[347349975,1735720250130,-673.48,0.00019452,3]
[347349976,1735720250139,-1079.28,0.00019452,3]
[347349977,1735720250148,-500.0,0.00019452,3]
[347349978,1735720250158,-5119.51,0.00019452,3]
[347349979,1735720250167,-500.0,0.00019452,3]
[347349980,1735720250176,-845.66,0.00019452,3]
[347349981,1735720250186,-621.80087214,0.00019452,3]
[347349982,1735720250206,-517.84986334,0.00019452,3]
[347349983,1735720250215,-501.77655213,0.00019452,3]
[347349984,1735720250226,-500.0,0.00019452,3]
[347349985,1735720250235,-4555.71,0.00019452,3]
[347349986,1735720250245,-610.83,0.00019452,3]
[347349987,1735720250254,-501.98430521,0.00019452,3]
[347349988,1735720250263,-511.14595634,0.00019452,3]
[347349989,1735720250273,-500.0,0.00019452,3]
[347349990,1735720250282,-12947.19,0.00019452,3]
[347349991,1735720250291,-587.82425264,0.00019452,3]
[347349992,1735720250301,-502.23850018,0.00019452,3]
[347349993,1735720250310,-500.0,0.00019452,3]
[347349994,1735720250320,-1263.88,0.00019452,3]
[347349995,1735720250329,-2879.58,0.00019452,3]
[347349996,1735720250338,-1855.4,0.00019452,3]
[347349997,1735720250348,-500.0,0.00019452,3]
[347349998,1735720250357,-2871.13,0.00019452,3]
[347349999,1735720250366,-908.86,0.00019452,3]
[347350000,1735720250375,-606.31907927,0.00019452,3]
[347350001,1735720250385,-578.99,0.00019452,3]
[347350002,1735720250394,-500.0,0.00019452,3]
[347350003,1735720250404,-500.0,0.00019452,3]
[347350004,1735720250549,-1986.72,0.00019452,3]
[347350005,1735720250559,-2041.24,0.00019452,3]
[347350006,1735720250568,-500.0,0.00019452,3]
[347350007,1735720250578,-517.04291397,0.00019452,3]
[347350008,1735720250588,-862.45,0.00019452,3]
[347350009,1735720250597,-500.56417258,0.00019473,2]
[347350010,1735720250606,-500.0,0.00019473,2]
[347350011,1735720250616,-500.0,0.00019473,2]
[347350012,1735720250625,-500.0,0.00019473,2]
[347350013,1735720250634,-515.22908505,0.00019473,2]
[347350014,1735720250644,-500.0,0.00019473,2]
[347350015,1735720250653,-500.0,0.00019473,2]
[347350016,1735720250662,-500.0,0.00019473,2]
[347350017,1735720250672,-326.62804308,0.00019473,2]
[347350018,1735720250682,-501.07108015,0.00019473,2]
[347350019,1735720250692,-161.07755856,0.00019473,2]
[347350020,1735720250701,-6016.92,0.000195,2]
[347350021,1735720250711,-1091.503396,0.000195,2]
[347350022,1735720250720,-208.8,0.00019666,5]
[347350023,1735720250730,-151.0,0.000197,2]
[347350024,1735720250739,-745.21,0.00019726,3]
[347350025,1735720250749,-500.0,0.00019726,3]
[347350026,1735720250759,-500.0,0.00019726,3]
[347350027,1735720250768,-867.71,0.00019726,3]
[347350028,1735720250780,-500.0,0.00019726,3]
[347350029,1735720250790,-500.0,0.00019726,3]
[347350030,1735720250799,-1608.59,0.00019726,3]
[347350031,1735720250809,-500.0,0.00019726,3]
[347350032,1735720250819,-500.0,0.00019726,3]
[347350033,1735720250829,-379.00228674,0.00019726,3]
[347350034,1735720250838,-643.15,0.00019726,3]
[347350035,1735720250848,-6961.06,0.00019726,3]
[347350036,1735720250860,-583.88169792,0.00019726,3]
[347350037,1735720250870,-509.10036091,0.00019726,3]
[347350038,1735720250880,-1702.67,0.00019726,3]
[347350039,1735720250890,-506.48334097,0.00019726,3]
[347350040,1735720250899,-500.0,0.00019726,3]
[347350041,1735720250909,-503.19528994,0.00019726,3]
[347350042,1735720250918,-507.81533537,0.00019726,3]
[347350043,1735720250928,-507.50356686,0.00019726,3]
[347350044,1735720250937,-850.95,0.00019726,3]
[347350045,1735720250947,-500.0,0.00019726,3]
[347350046,1735720250958,-500.0,0.00019726,3]
[347350047,1735720250967,-520.8408332,0.00019726,3]
[347350048,1735720250977,-505.12386787,0.00019726,3]
[347350049,1735720250987,-500.0,0.00019726,3]
[347350050,1735720251000,-2920.81,0.00019726,3]
[347350051,1735720251010,-1932.48,0.00019726,3]
[347350052,1735720251019,-703.69,0.00019726,3]
[347350053,1735720251029,-530.38,0.00019726,3]
[347350054,1735720251039,-500.0,0.00019726,3]
[347350055,1735720251048,-741.53,0.00019726,3]
[347350056,1735720251058,-478.50387535,0.00019726,3]
[347350057,1735720251067,-500.0,0.00019726,3]
[347350058,1735720251077,-2338.69,0.00019726,2]
[347350059,1735720251087,-500.0,0.00019726,3]
[347350060,1735720251096,-500.0,0.00019726,3]
[347350061,1735720251106,-916.92,0.00019726,3]
[347350062,1735720251116,-500.0,0.00019726,3]
[347350063,1735720251126,-500.0,0.00019726,3]
[347350064,1735720251135,-500.0,0.00019726,3]
[347350065,1735720251145,-500.0,0.00019726,3]
[347350066,1735720251155,-1013.81,0.00019726,3]
[347350067,1735720251164,-686.12,0.00019726,3]
[347350068,1735720251174,-500.0,0.00019726,3]
[347350069,1735720251184,-500.0,0.00019726,3]
[347350070,1735720251193,-3437.67,0.00019726,3]
[347350071,1735720251203,-515.63,0.00019726,3]
[347350072,1735720251212,-500.0,0.00019726,3]
[347350073,1735720251222,-500.0,0.00019726,3]
[347350074,1735720251232,-500.0,0.00019726,3]
[347350075,1735720251241,-500.0,0.00019726,3]
[347350076,1735720251251,-500.0,0.00019726,3]
[347350077,1735720251260,-500.0,0.00019726,3]
[347350078,1735720251270,-746.38,0.00019726,3]
[347350079,1735720251279,-513.46249855,0.00019726,3]
[347350080,1735720251289,-500.0,0.00019726,3]
[347350081,1735720251299,-313.11424423,0.00019726,3]
[347350082,1735720251308,-500.0,0.00019726,3]
[347350083,1735720251318,-1048.96,0.00019726,3]
[347350084,1735720251328,-500.0,0.00019726,3]
[347350085,1735720251337,-556.04,0.00019726,3]
[347350086,1735720251347,-13168.02,0.00019726,3]
[347350087,1735720251356,-500.0,0.00019726,3]
[347350088,1735720251366,-1738.82,0.00019726,3]
[347350089,1735720251376,-770.01,0.00019726,3]
[347350090,1735720251385,-500.0,0.00019726,3]
[347350091,1735720251395,-1797.45,0.00019726,3]
[347350092,1735720251404,-1507.99,0.00019726,3]
[347350093,1735720251413,-500.0,0.00019726,3]
[347350094,1735720251423,-873.68,0.00019726,3]
[347350095,1735720251432,-500.0,0.00019726,3]
[347350096,1735720251442,-2037.67,0.00019726,3]
[347350097,1735720251451,-540.24,0.00019726,3]
[347350098,1735720251461,-1946.76,0.00019726,3]
[347350099,1735720251470,-500.0,0.00019726,3]
[347350100,1735720251482,-500.0,0.00019726,3]
[347350101,1735720251492,-500.0,0.00019726,3]
[347350102,1735720251503,-526.88,0.00019726,3]
[347350103,1735720251512,-517.33511592,0.00019726,3]
[347350104,1735720251522,-500.0,0.00019726,3]
[347350105,1735720251531,-500.0,0.00019726,3]
[347350106,1735720251541,-500.0,0.00019726,3]
[347350107,1735720251551,-500.0,0.00019726,3]
[347350108,1735720251560,-500.0,0.00019726,3]
[347350109,1735720251570,-203.30403454,0.00019726,3]
[347350110,1735720251579,-1537.61,0.00019726,3]
[347350111,1735720251589,-926.19,0.00019726,3]
[347350112,1735720251599,-1017.52,0.00019726,3]
[347350113,1735720251608,-500.0,0.00019726,3]
[347350114,1735720251618,-1029.04,0.00019726,3]
[347350115,1735720251627,-500.0,0.00019726,3]
[347350116,1735720251637,-500.0,0.00019726,3]
[347350117,1735720251646,-1076.43,0.00019726,3]
[347350118,1735720251655,-1214.61,0.00019726,3]
[347350119,1735720251664,-1063.0,0.00019726,3]
[347350120,1735720251674,-1031.81,0.00019726,3]
[347350121,1735720251683,-1022.96,0.00019726,3]
[347350122,1735720251693,-3720.64,0.00019726,3]
[347350123,1735720251703,-738.26,0.00019726,3]
[347350124,1735720251712,-500.0,0.00019726,3]
[347350125,1735720251722,-500.0,0.00019726,3]
[347350126,1735720251733,-500.0,0.00019726,3]
[347350127,1735720251742,-500.0,0.00019726,3]
[347350128,1735720251751,-671.2,0.00019726,3]
[347350129,1735720251761,-500.0,0.00019726,3]
[347350130,1735720251770,-500.0,0.00019726,3]
[347350131,1735720251785,-500.0,0.00019726,3]
[347350132,1735720251794,-1123.7,0.00019726,3]
[347350133,1735720251803,-500.0,0.00019726,3]
[347350134,1735720251812,-640.48394492,0.00019726,3]
[347350135,1735720251822,-307.33717706,0.00019726,3]
[347350136,1735720251832,-1962.43,0.00019726,3]
[347350137,1735720251842,-2537.47,0.00019726,3]
[347350138,1735720251853,-997.18,0.00019726,3]
[347350139,1735720251862,-1285.18,0.00019726,3]
[347350140,1735720251872,-606.08,0.00019726,3]
[347350141,1735720251881,-500.0,0.00019726,3]
[347350142,1735720251890,-3079.21,0.00019726,3]
[347350143,1735720251900,-1003.97,0.00019726,3]
[347350144,1735720251910,-7636.71,0.00019726,3]
[347350145,1735720251919,-1958.67,0.00019726,3]
[347350146,1735720251928,-2280.9,0.00019726,3]
[347350147,1735720251938,-500.0,0.00019726,3]
[347350148,1735720251947,-1592.58,0.00019726,3]
[347350149,1735720251957,-500.0,0.00019726,3]
[347350150,1735720251966,-505.30755109,0.00019726,3]
[347350151,1735720251977,-500.0,0.00019726,3]
[347350152,1735720251986,-47487.2,0.00019726,3]
[347350153,1735720251996,-962.95,0.00019726,3]
[347350154,1735720252005,-507.5545526,0.00019726,3]
[347350155,1735720252014,-507.43627863,0.00019726,3]
[347350156,1735720252024,-500.0,0.00019726,3]
[347350157,1735720252033,-500.0,0.00019726,3]
[347350158,1735720252043,-500.0,0.00019726,3]
[347350159,1735720252052,-502.98,0.00019726,3]
[347350160,1735720252062,-500.0,0.00019726,3]
[347350161,1735720252072,-500.0,0.00019726,3]
[347350162,1735720252082,-1095.82,0.00019726,3]
[347350163,1735720252091,-1307.24,0.00019726,3]
[347350164,1735720252101,-1750.82,0.00019726,3]
[347350165,1735720252111,-500.0,0.00019726,3]
[347350166,1735720252120,-500.0,0.00019726,3]
[347350167,1735720252130,-769.33,0.00019726,2]
[347350168,1735720252139,-1932.28,0.00019726,3]
[347350169,1735720252148,-500.0,0.00019726,3]
[347350170,1735720252157,-1079.28,0.00019726,3]
[347350171,1735720252167,-673.48,0.00019726,3]
[347350172,1735720252176,-500.0,0.00019726,3]
[347350173,1735720252185,-5119.51,0.00019726,3]
[347350174,1735720252195,-500.0,0.00019726,3]
[347350175,1735720252205,-845.66,0.00019726,3]
[347350176,1735720252214,-500.0,0.00019726,3]
[347350177,1735720252225,-4555.71,0.00019726,3]
[347350178,1735720252234,-610.83,0.00019726,3]
[347350179,1735720252243,-500.0,0.00019726,3]
[347350180,1735720252253,-12947.19,0.00019726,3]
[347350181,1735720252262,-500.0,0.00019726,3]
[347350182,1735720252272,-1263.88,0.00019726,3]
[347350183,1735720252281,-2879.58,0.00019726,3]
[347350184,1735720252291,-1855.4,0.00019726,3]
[347350185,1735720252300,-500.0,0.00019726,3]
[347350186,1735720252311,-2871.13,0.00019726,3]
[347350187,1735720252320,-908.86,0.00019726,3]
[347350188,1735720252330,-578.99,0.00019726,3]
[347350189,1735720252350,-500.0,0.00019726,3]
[347350190,1735720252360,-607.10787766,0.00019726,3]
[347350191,1735720252370,-1986.72,0.00019726,3]
[347350192,1735720252380,-2041.24,0.00019726,3]
[347350193,1735720252389,-500.0,0.00019726,3]
[347350194,1735720252399,-524.04815283,0.00019792,2]
[347350195,1735720252409,-10221.82,0.000198,2]
[347350196,1735720252419,-2686.73,0.000198,2]
[347350197,1735720252428,-864.23,0.000198,2]
[347350198,1735720252438,-500.0,0.00019881,2]
[347350199,1735720252448,-151.164,0.00019881,2]
[347350200,1735720252458,-151.0,0.00019881,2]
[347350201,1735720252468,-1200.0,0.00019881,2]
[347350202,1735720252479,-5588.75555404,0.000199,2]
[347350203,1735720252489,-208.8,0.00019981,5]
[347350204,1735720252499,-20961.64221529,0.0001999,3]
[347350205,1735720252508,-17735.29918929,0.0002,2]
[347350206,1735720252519,-10902.55276097,0.0002,2]
[347350207,1735720252528,-15721.41195288,0.0002,2]
[347350208,1735720252538,-353.37041977,0.0002,2]
[347350209,1735720252548,-5172.1913679,0.0002,2]
[347350210,1735720252558,-187.0,0.0002,2]
[347350211,1735720252568,-192.24,0.0002,2]
[347350212,1735720252578,-2391.0,0.0002,3]
[347350213,1735720252588,-2389.0,0.0002,3]
[347350214,1735720252598,-2389.0,0.0002,3]
[347350215,1735720252607,-2389.0,0.0002,3]
[347350216,1735720252618,-9784.20575964,0.0002,2]
[347350217,1735720252628,-517.98716755,0.0002,60]
[347350218,1735720252637,-745.21,0.0002,3]
[347350219,1735720252647,-500.0,0.0002,3]
[347350220,1735720252656,-500.0,0.0002,3]
[347350221,1735720252666,-867.71,0.0002,3]
[347350222,1735720252676,-500.0,0.0002,3]
[347350223,1735720252685,-500.0,0.0002,3]
[347350224,1735720252695,-1608.59,0.0002,3]
[347350225,1735720252705,-500.0,0.0002,3]
[347350226,1735720252715,-500.0,0.0002,3]
[347350227,1735720252726,-643.15,0.0002,3]
[347350228,1735720252735,-6961.06,0.0002,3]
[347350229,1735720252745,-1702.67,0.0002,3]
[347350230,1735720252754,-500.0,0.0002,3]
[347350231,1735720252764,-850.95,0.0002,3]
[347350232,1735720252908,-500.0,0.0002,3]
[347350233,1735720252917,-515.88451245,0.0002,3]
[347350234,1735720252927,-500.0,0.0002,3]
[347350235,1735720252936,-2920.81,0.0002,3]
[347350236,1735720252945,-1932.48,0.0002,3]
[347350237,1735720252955,-703.69,0.0002,3]
[347350238,1735720252965,-530.38,0.0002,3]
[347350239,1735720252976,-500.0,0.0002,3]
[347350240,1735720252986,-741.53,0.0002,3]
[347350241,1735720252996,-500.0,0.0002,3]
[347350242,1735720253005,-2338.69,0.0002,2]
[347350243,1735720253014,-500.0,0.0002,3]
[347350244,1735720253024,-500.0,0.0002,3]
[347350245,1735720253033,-916.92,0.0002,3]
[347350246,1735720253042,-500.0,0.0002,3]
[347350247,1735720253052,-500.0,0.0002,3]
[347350248,1735720253061,-500.0,0.0002,3]
[347350249,1735720253070,-500.0,0.0002,3]
[347350250,1735720253080,-1013.81,0.0002,3]
[347350251,1735720253089,-686.12,0.0002,3]
[347350252,1735720253098,-500.0,0.0002,3]
[347350253,1735720253107,-500.0,0.0002,3]
[347350254,1735720253116,-515.63,0.0002,3]
[347350255,1735720253126,-3437.67,0.0002,3]
[347350256,1735720253135,-500.0,0.0002,3]
[347350257,1735720253144,-500.0,0.0002,3]
[347350258,1735720253154,-500.0,0.0002,3]
[347350259,1735720253163,-500.0,0.0002,3]
[347350260,1735720253172,-375.58535583,0.0002,3]
[347350261,1735720253182,-544.18946374,0.0002,3]
[347350262,1735720253191,-746.38,0.0002,3]
[347350263,1735720253200,-500.0,0.0002,3]
[347350264,1735720253210,-500.0,0.0002,3]
[347350265,1735720253219,-1048.96,0.0002,3]
[347350266,1735720253231,-500.0,0.0002,3]
[347350267,1735720253240,-556.04,0.0002,3]
[347350268,1735720253250,-13168.02,0.0002,3]
[347350269,1735720253259,-500.0,0.0002,3]
[347350270,1735720253269,-1738.82,0.0002,3]
[347350271,1735720253278,-770.01,0.0002,3]
[347350272,1735720253287,-500.0,0.0002,3]
[347350273,1735720253297,-1797.45,0.0002,3]
[347350274,1735720253306,-1507.99,0.0002,3]
[347350275,1735720253315,-500.0,0.0002,3]
[347350276,1735720253324,-873.68,0.0002,3]
[347350277,1735720253334,-500.0,0.0002,3]
[347350278,1735720253343,-2037.67,0.0002,3]
[347350279,1735720253352,-540.24,0.0002,3]
[347350280,1735720253362,-1946.76,0.0002,3]
[347350281,1735720253371,-362.40780836,0.0002,3]
[347350282,1735720253380,-500.0,0.0002,3]
[347350283,1735720253390,-632.43999671,0.0002,3]
[347350284,1735720253399,-526.88,0.0002,3]
[347350285,1735720253408,-500.0,0.0002,3]
[347350286,1735720253417,-500.0,0.0002,3]
[347350287,1735720253426,-500.0,0.0002,3]
[347350288,1735720253435,-500.0,0.0002,3]
[347350289,1735720253445,-500.0,0.0002,3]
[347350290,1735720253454,-1537.61,0.0002,3]
[347350291,1735720253464,-926.19,0.0002,3]
[347350292,1735720253473,-1017.52,0.0002,3]
[347350293,1735720253483,-504.9896298,0.0002,3]
[347350294,1735720253493,-1029.04,0.0002,3]
[347350295,1735720253502,-500.0,0.0002,3]
[347350296,1735720253512,-500.0,0.0002,3]
[347350297,1735720253521,-1076.43,0.0002,3]
[347350298,1735720253530,-1214.61,0.0002,3]
[347350299,1735720253539,-1063.0,0.0002,3]
[347350300,1735720253549,-1031.81,0.0002,3]
[347350301,1735720253558,-1022.96,0.0002,3]
[347350302,1735720253568,-3720.64,0.0002,3]
[347350303,1735720253577,-738.26,0.0002,3]
[347350304,1735720253587,-500.0,0.0002,3]
[347350305,1735720253596,-500.0,0.0002,3]
[347350306,1735720253605,-500.0,0.0002,3]
[347350307,1735720253615,-500.0,0.0002,3]
[347350308,1735720253625,-671.2,0.0002,3]
[347350309,1735720253634,-192.99724885,0.0002,3]
[347350310,1735720253643,-500.0,0.0002,3]
[347350311,1735720253653,-510.09928644,0.0002,3]
[347350312,1735720253662,-1123.7,0.0002,3]
[347350313,1735720253671,-500.0,0.0002,3]
[347350314,1735720253681,-1192.17297299,0.0002,3]
[347350315,1735720253832,-770.25702701,0.0002,3]
[347350316,1735720253842,-1678.48297299,0.0002,3]
[347350317,1735720254158,-214.4412851,0.000189,2]
[347350318,1735720254168,-153.5878957,0.000189,2]
[347350319,1735720254177,-320.038846,0.00018986,2]
[347350320,1735720254187,-620.46,0.00019178,2]
[347350321,1735720254197,-620.46,0.00019452,3]
[347350322,1735720254206,-500.0,0.00019473,2]
[347350323,1735720254216,-862.45,0.00019726,3]
[347350324,1735720254226,-620.46,0.00019726,3]
[347350325,1735720254235,-328.73454891,0.0002,3]
[347350326,1735720254313,-530.2524781,0.0002,3]
[347350327,1735720254322,-997.18,0.0002,3]
[347350328,1735720254331,-1285.18,0.0002,3]
[347350329,1735720254340,-606.08,0.0002,3]
[347350330,1735720254350,-500.0,0.0002,3]
[347350331,1735720254359,-3079.21,0.0002,3]
[347350332,1735720254368,-1003.97,0.0002,3]
[347350333,1735720254378,-312.94505894,0.0002,3]
[347350334,1735720254391,-7323.76494106,0.0002,3]
[347350335,1735720254400,-1958.67,0.0002,3]
[347350336,1735720254410,-2280.9,0.0002,3]
[347350337,1735720254419,-500.0,0.0002,3]
[347350338,1735720254428,-1592.58,0.0002,3]
[347350339,1735720254437,-500.0,0.0002,3]
[347350340,1735720254447,-500.0,0.0002,3]
[347350341,1735720254456,-7343.78837894,0.0002,3]
[347350344,1735720423674,241.713494,0.00013973,2]
[347350409,1735721432761,-300.0,0.00018989,2]
[347350410,1735721432771,-188.75262368,0.0001899,2]
[347350416,1735721438667,-7351.28166407,0.0001899,2]
[347350417,1735721438679,-430.4144,0.0001899,2]
[347350418,1735721438718,-475.67,0.0001899,2]
[347350438,1735721443656,-1065.80723891,0.000188,2]
[347350439,1735721443666,-2834.19276109,0.0001899,2]
[347350440,1735721443677,-3739.2,0.0001899,2]
[347350441,1735721443689,-17449.90767502,0.0001899,2]
[347350442,1735721443701,-3405.0,0.0001899,2]
[347350443,1735721443721,-433.8945,0.0001899,2]
[347350444,1735721443732,-11293.38217946,0.0001899,2]
[347350445,1735721443769,-3800.0,0.0001899,2]
[347350454,1735721462040,244.829664,0.00013973,2]
[347350491,1735722473679,232.58818,0.00013973,2]
[347350551,1735722573727,-390.96657971,0.000184,2]
[347350553,1735722573754,-207.75421259,0.000184,2]
[347350597,1735722632070,-4822.1257861,0.000184,2]
[347350599,1735722632080,-300.0,0.00018498,2]
[347350601,1735722632089,-499.48586157,0.00018499,2]
[347350603,1735722632099,-155.20554169,0.00018499,2]
[347350604,1735722632107,-500.0,0.00018499,2]
[347350605,1735722632117,-314.30415095,0.00018499,2]
[347350607,1735722632127,-250.0,0.00018499,2]
[347350609,1735722632143,-573.98538518,0.000185,2]
[347350612,1735722632155,-2429.82343844,0.000185,2]
[347350614,1735722632164,-43677.39807933,0.000185,5]
[347350683,1735722637923,-3617.98248775,0.000185,5]
[347350852,1735723638737,220.958771,0.00013973,2]
[347351018,1735723834203,-284.8000152,0.00016731,2]
[347351019,1735723834212,-180.2049848,0.000169,2]
[347351194,1735723838127,-457.64823479,0.000169,2]
[347351196,1735723838136,-300.0,0.00016998,2]
[347351198,1735723838145,-216.55721616,0.00016999,2]
[347351202,1735723838188,-70.43547643,0.00016999,2]
[347351204,1735723838197,-12935.69580666,0.00016999,2]
[347351207,1735723838250,-11823.37497996,0.00016999,2]
[347351208,1735723838262,-7515.81647418,0.00016999,2]
[347351209,1735723838274,-4651.09939998,0.00016999,2]
[347351237,1735723840069,-1192.2580604,0.00016999,2]
[347351281,1735723843075,-13598.82677018,0.00016999,2]
[347351287,1735723843124,-3037.99338142,0.00016999,2]
[347351289,1735723843142,-9202.77677468,0.00016999,2]
[347351290,1735723843151,-32416.52345743,0.00017,8]
[347351291,1735723843199,-52324.14374567,0.00017,8]
[347351292,1735723843209,-637.85321955,0.00017708,2]
[347351293,1735723843219,-151.741,0.0001813,2]
[347351294,1735723843229,-9945.95067571,0.00018197,2]
[347351295,1735723843238,-4807.50541371,0.000184,2]
[347351296,1735723843248,-1311.56670936,0.00018499,2]
[347351297,1735723843261,-160.0,0.00018499,2]
[347351298,1735723843270,-61034.89249113,0.000185,5]
[347351301,1735723846269,-652.77792288,0.000185,5]
[347351393,1735724119847,11906.0024642,0.00014991,2]
[347351395,1735724196686,-868.3707866,0.0001568,2]
[347351396,1735724196707,-309.01139754,0.00015838,2]
[347351397,1735724196727,-394.88020074,0.00015895,2]
[347351398,1735724196747,-995.96547381,0.00015896,2]
[347351399,1735724196766,-161.21275987,0.000159,7]
[347351400,1735724196786,-500.0,0.00015973,2]
[347351401,1735724196806,-500.0,0.00015973,2]
[347351402,1735724196827,-394.88020071,0.00015985,2]
[347351403,1735724196847,-184.07721902,0.00015994,2]
[347351404,1735724196867,-638.62536857,0.00015994,2]
[347351405,1735724196888,-500.0,0.00015994,2]
[347351406,1735724196909,-500.0,0.00015994,2]
[347351407,1735724196930,-500.0,0.00015994,2]
[347351408,1735724196952,-500.0,0.00015994,2]
[347351409,1735724196973,-500.0,0.00015994,2]
[347351410,1735724196992,-500.0,0.00015994,2]
[347351411,1735724197012,-262.42338212,0.00015994,2]
[347351412,1735724197032,-500.0,0.00015994,2]
[347351413,1735724197051,-500.82797707,0.00015994,2]
[347351414,1735724197071,-500.0,0.00015994,2]
[347351415,1735724197090,-500.0,0.00015994,2]
[347351416,1735724197110,-500.0,0.00015994,2]
[347351417,1735724197129,-508.8346022,0.00015994,2]
[347351418,1735724197150,-500.0,0.00015994,2]
[347351419,1735724197170,-500.0,0.00015994,2]
[347351420,1735724197190,-500.0,0.00015994,2]
[347351421,1735724197211,-500.0,0.00015994,2]
[347351422,1735724197231,-500.0,0.00015994,2]
[347351423,1735724197250,-500.0,0.00015994,2]
[347351424,1735724197269,-500.0,0.00015994,2]
[347351425,1735724197289,-500.0,0.00015994,2]
[347351426,1735724197308,-500.0,0.00015994,2]
[347351427,1735724197328,-325.26231399,0.00015994,2]
[347351428,1735724197348,-500.0,0.00015994,2]
[347351429,1735724197369,-500.0,0.00015994,2]
[347351430,1735724197390,-500.0,0.00015994,2]
[347351431,1735724197411,-500.0,0.00015994,2]
[347351432,1735724197430,-500.0,0.00015994,2]
[347351433,1735724197450,-500.0,0.00015994,2]
[347351434,1735724197470,-500.0,0.00015994,2]
[347351435,1735724197491,-500.0,0.00015994,2]
[347351436,1735724197511,-500.0,0.00015994,2]
[347351437,1735724197530,-500.0,0.00015994,2]
[347351438,1735724197549,-500.0,0.00015994,2]
[347351439,1735724197571,-500.0,0.00015994,2]
[347351440,1735724197591,-500.0,0.00015994,2]
[347351441,1735724197612,-500.0,0.00015994,2]
[347351442,1735724197633,-500.0,0.00015994,2]
[347351443,1735724197652,-500.0,0.00015994,2]
[347351444,1735724197672,-500.0,0.00015994,2]
[347351445,1735724197692,-500.0,0.00015994,2]
[347351446,1735724197713,-500.0,0.00015994,2]
[347351447,1735724197734,-500.0,0.00015994,2]
[347351448,1735724197754,-500.0,0.00015994,2]
[347351449,1735724197775,-400.0,0.00015994,2]
[347351450,1735724197795,-500.0,0.00015994,2]
[347351451,1735724197814,-500.0,0.00015994,2]
[347351452,1735724197835,-500.0,0.00015994,2]
[347351453,1735724197855,-500.0,0.00015994,2]
[347351454,1735724197876,-500.0,0.00015994,2]
[347351455,1735724197895,-540.02621121,0.00015994,2]
[347351456,1735724197925,-555.49376338,0.00015994,2]
[347351457,1735724197950,-500.0,0.00015994,2]
[347351458,1735724197972,-500.0,0.00015994,2]
[347351459,1735724197994,-500.0,0.00015994,2]
[347351460,1735724198016,-500.0,0.00015994,2]
[347351461,1735724198036,-500.0,0.00015994,2]